bitfinex/quotes_SOLUSD_20250307
["timestamp","ask_amount","ask_price","bid_price","bid_amount"]
[1741368802976,24.5406,142.62,142.5,8.6681]
[1741368803172,48.37808219,142.55,142.5,8.6681]
[1741368803566,8.1,142.57,142.46,151.973]
[1741368803775,48.37808219,142.53,142.46,207.37048219]
[1741368803955,48.37808219,142.54,142.47,48.37808219]
[1741368804155,48.37808219,142.52,142.46,207.37048219]
[1741368804357,48.37808219,142.52,142.46,158.9924]
[1741368804565,48.37808219,142.5,142.46,151.973]
[1741368804856,48.37808219,142.51,142.46,158.9924]
[1741368805378,48.37808219,142.5,142.46,158.9924]
[1741368805797,48.37808219,142.5,142.46,151.973]
[1741368806075,48.37808219,142.47,142.46,151.973]
[1741368807073,48.37808219,142.47,142.46,0.033]
[1741368808379,55.39708219,142.47,142.46,0.033]
[1741368808879,48.37808219,142.47,142.46,0.033]
[1741368809773,55.39708219,142.47,142.46,0.033]
[1741368810380,48.37808219,142.47,142.46,0.033]
[1741368810977,55.39708219,142.47,142.46,0.033]
[1741368811178,8.1,142.5,142.46,0.033]
[1741368811383,48.37808219,142.47,142.46,0.033]
[1741368811677,96.75616438,142.47,142.46,0.033]
[1741368811883,96.75616438,142.47,142.38,151.953]
[1741368811884,117.90616438,142.47,142.38,0.033]
[1741368812063,48.37808219,142.39,142.38,0.033]
[1741368812472,8.1,142.41,142.38,0.033]
[1741368812659,48.37808219,142.39,142.38,0.033]
[1741368812858,48.37808219,142.4,142.38,0.033]
[1741368813262,48.37808219,142.39,142.38,0.033]
[1741368814057,96.75616438,142.39,142.38,0.033]
[1741368814263,48.37808219,142.39,142.38,0.033]
[1741368814880,96.75616438,142.39,142.38,0.033]
[1741368815088,55.40098219,142.39,142.38,0.033]
[1741368815284,48.37808219,142.39,142.38,0.033]
[1741368815469,7.0185,142.48,142.38,48.41108219]
[1741368815666,48.37808219,142.46,142.4,48.37808219]
[1741368815983,65.92038219,142.52,142.38,0.033]
[1741368815984,8.1,142.54,142.41,152.02]
[1741368816167,8.1,142.54,142.47,48.37808219]
[1741368816567,48.37808219,142.52,142.44,1.6599]
[1741368816767,48.37808219,142.52,142.46,48.37808219]
[1741368816982,48.37808219,142.48,142.44,1.6599]
[1741368817271,48.37808219,142.45,142.38,7.7241]
[1741368817481,48.37808219,142.43,142.38,1.5504]
[1741368817783,48.37808219,142.45,142.38,56.95168219]
[1741368817967,48.37808219,142.44,142.38,56.95168219]
[1741368818166,15.1187,142.48,142.38,56.95168219]
[1741368818368,48.37808219,142.43,142.38,1.5504]
[1741368818578,48.37808219,142.42,142.38,8.5736]
[1741368818781,48.37808219,142.43,142.38,1.5504]
[1741368818986,48.37808219,142.42,142.38,1.5504]
[1741368819176,48.37808219,142.41,142.38,0.033]
[1741368819975,7.022,142.41,142.38,0.033]
[1741368820181,48.37808219,142.4,142.38,0.033]
[1741368820487,56.47808219,142.42,142.38,0.033]
[1741368820664,48.37808219,142.41,142.38,0.033]
[1741368821070,56.47808219,142.42,142.38,0.033]
[1741368821297,8.1,142.42,142.38,0.033]
[1741368821790,48.37808219,142.44,142.38,0.033]
[1741368822086,15.1195,142.46,142.38,0.033]
[1741368822087,48.37808219,142.4,142.38,0.033]
[1741368822475,48.37808219,142.41,142.38,0.033]
[1741368822678,48.37808219,142.4,142.38,0.033]
[1741368822878,48.37808219,142.39,142.38,0.033]
[1741368823776,55.40098219,142.39,142.38,0.033]
[1741368824791,48.37808219,142.39,142.38,0.033]
[1741368825002,15.1226,142.4,142.38,0.033]
[1741368825288,96.75616438,142.39,142.35,0.033]
[1741368825592,48.37808219,142.36,142.35,0.033]
[1741368827386,7.0229,142.39,142.35,0.033]
[1741368827596,48.37808219,142.36,142.35,0.033]
[1741368828387,7.0229,142.39,142.35,0.033]
[1741368828567,65.92918219,142.45,142.35,0.033]
[1741368828778,48.37808219,142.39,142.35,0.033]
[1741368828995,48.37808219,142.4,142.35,0.033]
[1741368829198,6.2434,142.46,142.37,48.37808219]
[1741368829371,48.37808219,142.44,142.37,48.37808219]
[1741368829570,48.37808219,142.45,142.36,9.6688]
[1741368829771,0.03,142.46,142.42,48.37808219]
[1741368829968,0.03,142.46,142.43,48.37808219]
[1741368830167,0.03,142.46,142.45,48.37808219]
[1741368830674,10.84981356,142.51,142.45,72.94808219]
[1741368830875,10.84981356,142.51,142.5,48.37808219]
[1741368831079,3.9397802,142.51,142.5,48.37808219]
[1741368831492,48.37808219,142.58,142.5,48.37808219]
[1741368831693,10.9818802,142.61,142.48,9.649]
[1741368831880,48.37808219,142.58,142.52,48.37808219]
[1741368832494,48.37808219,142.59,142.53,7.016]
[1741368832796,52.34786239,142.61,142.55,48.37808219]
[1741368832998,3.9697802,142.61,142.56,48.37808219]
[1741368833377,48.37808219,142.6,142.53,7.016]
[1741368833577,3.9697802,142.61,142.56,48.37808219]
[1741368834193,48.37808219,142.59,142.5,7.0175]
[1741368834495,48.37808219,142.58,142.51,48.37808219]
[1741368834676,48.37808219,142.55,142.4,1.664]
[1741368834991,8.1,142.57,142.4,8.6863]
[1741368835173,48.37808219,142.51,142.44,48.37808219]
[1741368835497,48.37808219,142.56,142.44,8.1]
[1741368835892,48.37808219,142.56,142.49,48.37808219]
[1741368836081,15.1126,142.6,142.5,48.37808219]
[1741368836398,48.37808219,142.56,142.49,48.37808219]
[1741368837198,48.37808219,142.55,142.46,471.0193]
[1741368837506,48.37808219,142.55,142.48,48.37808219]
[1741368838213,48.37808219,142.54,142.48,48.37808219]
[1741368838407,7.0137,142.58,142.46,471.0193]
[1741368838602,48.37808219,142.55,142.48,48.37808219]
[1741368839311,48.37808219,142.54,142.47,48.37808219]
[1741368839714,0.03,142.56,142.47,48.37808219]
[1741368839911,48.37808219,142.54,142.47,48.37808219]
[1741368840113,48.37808219,142.54,142.46,464.0]
[1741368840114,48.37808219,142.53,142.46,471.0195]
[1741368840312,48.37808219,142.51,142.4,7.37386144]
[1741368840517,48.37808219,142.47,142.4,57.06438219]
[1741368840691,48.37808219,142.49,142.42,48.37808219]
[1741368840999,48.37808219,142.48,142.42,48.37808219]
[1741368841203,48.37808219,142.49,142.43,48.37808219]
[1741368841379,48.37808219,142.49,142.42,48.37808219]
[1741368841585,48.37808219,142.47,142.41,48.37808219]
[1741368841984,48.37808219,142.52,142.42,48.37808219]
[1741368842186,8.1,142.55,142.47,48.37808219]
[1741368842392,48.37808219,142.54,142.48,48.37808219]
[1741368842591,48.37808219,142.54,142.47,8.1]
[1741368842885,0.03,142.56,142.51,48.37808219]
[1741368843080,0.03,142.56,142.47,8.1]
[1741368843081,0.03,142.56,142.53,48.37808219]
[1741368843382,0.03,142.56,142.55,48.37808219]
[1741368843903,0.03,142.61,142.55,208.43808219]
[1741368844117,0.03,142.65,142.61,1.5209]
[1741368844288,17.581,142.71,142.69,48.37808219]
[1741368844490,48.40808219,142.71,142.66,8.1]
[1741368844690,7.0372,142.71,142.61,1.5209]
[1741368844996,7.0372,142.71,142.61,26.0632]
[1741368844997,0.03,142.71,142.61,26.0632]
[1741368845190,0.03,142.71,142.62,1.05122481]
[1741368845583,0.03,142.71,142.63,1.05116351]
[1741368845783,0.03,142.71,142.7,48.37808219]
[1741368845985,0.03,142.76,142.7,56.47808219]
[1741368846320,0.03,142.76,142.75,48.37808219]
[1741368846822,0.03,142.76,142.75,55.38328219]
[1741368847044,1.9939774,142.82,142.8,48.37808219]
[1741368847188,1.9939774,142.82,142.81,48.37808219]
[1741368848307,0.3273774,142.82,142.81,48.37808219]
[1741368848511,0.03,142.87,142.81,48.37808219]
[1741368848819,0.03,142.87,142.86,48.37808219]
[1741368849994,0.03,142.91,142.86,63.45788219]
[1741368850186,49.63545361,143.12,142.94,21.15]
[1741368850382,13.26825361,143.12,143.11,96.75616438]
[1741368850603,109.02956019,143.21,143.11,104.85616438]
[1741368850826,109.02956019,143.21,143.18,48.37808219]
[1741368851129,109.02956019,143.21,143.18,56.49808219]
[1741368851310,151.78,143.25,143.21,34.39538263]
[1741368851510,64.08751085,143.25,143.24,88.08549676]
[1741368851711,369.65912038,143.26,143.24,96.20549676]
[1741368851933,21.5396192,143.25,143.24,61.67985709]
[1741368852119,21.5396192,143.25,143.24,110.05793928]
[1741368852727,64.6188576,143.29,143.24,110.05793928]
[1741368852935,64.6188576,143.29,143.28,96.75616438]
[1741368853124,153.5639774,143.39,143.28,96.75616438]
[1741368853439,153.5639774,143.39,143.29,34.16353144]
[1741368853638,153.5639774,143.39,143.37,48.37808219]
[1741368854138,201.94205959,143.39,143.32,82.90092186]
[1741368854430,48.37808219,143.37,143.3,13.9037448]
[1741368854638,153.5639774,143.39,143.3,13.9037448]
[1741368854639,48.37808219,143.34,143.3,13.9037448]
[1741368854830,8.7,143.35,143.32,20.75289138]
[1741368855215,31.75912721,143.36,143.33,10.3791321]
[1741368855425,15.6754,143.36,143.33,10.3791321]
[1741368855831,1.74440268,143.39,143.3,10.3791321]
[1741368856044,151.42,143.38,143.31,8.7]
[1741368856222,151.42,143.38,143.35,48.37808219]
[1741368856412,1.74440268,143.39,143.37,48.37808219]
[1741368856847,88.24286473,143.38,143.31,19.0791321]
[1741368857013,136.12094692,143.38,143.33,10.3791321]
[1741368857214,64.57335978,143.38,143.33,10.3791321]
[1741368857435,128.8451394,143.37,143.33,45.18522959]
[1741368857613,128.8451394,143.37,143.33,58.75721429]
[1741368857934,1.74440268,143.39,143.31,8.68]
[1741368858127,1.74440268,143.39,143.31,15.6578]
[1741368858329,151.28,143.63,143.38,48.37808219]
[1741368858527,48.37808219,143.6,143.53,48.37808219]
[1741368858832,48.37808219,143.58,143.51,48.37808219]
[1741368859009,6.9628,143.62,143.52,48.37808219]
[1741368859212,119.34734602,143.61,143.56,48.37808219]
[1741368859435,167.72542821,143.61,143.5,48.37808219]
[1741368859626,48.37808219,143.58,143.47,8.86]
[1741368859939,119.34734602,143.61,143.47,8.86]
[1741368859940,48.37808219,143.55,143.47,312.0]
[1741368860116,8.86,143.58,143.43,48.37808219]
[1741368860324,48.37808219,143.57,143.46,48.37808219]
[1741368860625,48.37808219,143.57,143.38,20.75289138]
[1741368860626,48.37808219,143.49,143.42,48.37808219]
[1741368860931,157.6298,143.48,143.35,43.76854814]
[1741368861143,48.37808219,143.44,143.37,48.37808219]
[1741368861340,48.37808219,143.42,143.35,92.14663033]
[1741368861529,48.37808219,143.4,143.35,43.76854814]
[1741368861917,48.37808219,143.39,143.32,48.37808219]
[1741368862117,48.37808219,143.38,143.31,48.37808219]
[1741368862332,208.39808219,143.43,143.32,48.37808219]
[1741368862333,48.37808219,143.39,143.32,48.37808219]
[1741368862508,48.37808219,143.36,143.29,48.37808219]
[1741368862712,208.39808219,143.43,143.31,48.37808219]
[1741368862713,8.84,143.37,143.31,48.37808219]
[1741368862923,64.19298219,143.37,143.3,48.37808219]
[1741368863207,48.37808219,143.36,143.26,10.3791321]
[1741368863621,48.37808219,143.3,143.24,53.55985709]
[1741368863821,151.12,143.29,143.24,53.55985709]
[1741368864024,151.12,143.29,143.28,48.37808219]
[1741368864417,151.12,143.29,143.24,53.55985709]
[1741368864612,151.12,143.29,143.25,48.37808219]
[1741368864822,151.12,143.29,143.24,53.55985709]
[1741368865013,119.89073523,143.29,143.24,53.55985709]
[1741368865421,119.89073523,143.29,143.25,48.41108219]
[1741368865618,119.89073523,143.29,143.28,48.37808219]
[1741368866218,6.3969,143.41,143.28,48.37808219]
[1741368866422,48.37808219,143.37,143.3,48.37808219]
[1741368866630,17.436,143.39,143.31,48.37808219]
[1741368866812,241.33908219,143.4,143.25,1.07959002]
[1741368867011,151.12,143.4,143.25,0.033]
[1741368867238,48.37808219,143.36,143.29,48.37808219]
[1741368867417,48.37808219,143.35,143.27,48.37808219]
[1741368867735,129.24816838,143.4,143.25,0.033]
[1741368867929,129.24816838,143.4,143.27,48.37808219]
[1741368868134,129.24816838,143.4,143.25,0.033]
[1741368868319,48.37808219,143.34,143.27,48.37808219]
[1741368868716,59.2787,143.39,143.27,48.37808219]
[1741368869044,120.30816838,143.4,143.32,48.37808219]
[1741368869232,95.3498144,143.4,143.32,48.37808219]
[1741368869414,48.37808219,143.36,143.29,48.37808219]
[1741368869621,48.37808219,143.38,143.29,48.37808219]
[1741368869816,8.92,143.37,143.25,0.033]
[1741368870018,95.3498144,143.4,143.3,48.37808219]
[1741368870337,24.4092,143.39,143.32,48.37808219]
[1741368870522,48.37808219,143.37,143.29,48.37808219]
[1741368870938,24.4092,143.39,143.31,48.37808219]
[1741368871240,40.85462821,143.39,143.31,48.37808219]
[1741368871448,48.37808219,143.38,143.32,33.35481193]
[1741368871631,87.60929315,143.4,143.32,33.35481193]
[1741368871836,87.60929315,143.4,143.25,0.033]
[1741368871837,48.37808219,143.37,143.29,48.37808219]
[1741368872142,48.37808219,143.35,143.28,48.37808219]
[1741368872621,48.37808219,143.29,143.25,0.033]
[1741368873020,48.37808219,143.26,143.25,0.033]
[1741368873440,48.37808219,143.26,143.24,53.55985709]
[1741368873619,150.66620656,143.29,143.24,53.55985709]
[1741368873821,48.37808219,143.26,143.24,53.55985709]
[1741368874035,48.37808219,143.26,143.24,17.91605709]
[1741368874234,48.37808219,143.25,143.24,17.91605709]
[1741368874444,199.04428875,143.29,143.24,17.91605709]
[1741368874740,150.66620656,143.29,143.24,5.709e-05]
[1741368874924,48.37808219,143.28,143.24,5.709e-05]
[1741368875243,55.35788219,143.27,143.24,5.709e-05]
[1741368875427,150.66620656,143.29,143.24,5.709e-05]
[1741368875626,6.9794,143.28,143.24,48.37813928]
[1741368876022,24.4277,143.28,143.24,5.709e-05]
[1741368876244,48.37808219,143.26,143.24,5.709e-05]
[1741368876432,48.37808219,143.25,143.24,5.709e-05]
[1741368876630,48.37808219,143.25,143.12,48.37808219]
[1741368876833,8.96,143.27,143.11,0.033]
[1741368876834,48.37808219,143.21,143.13,48.37808219]
[1741368877022,6.9832,143.2,143.13,48.37808219]
[1741368877224,48.37808219,143.18,143.11,0.033]
[1741368877438,48.37808219,143.16,143.11,0.033]
[1741368877825,48.37808219,143.14,143.11,0.033]
[1741368878026,48.37808219,143.13,143.11,0.033]
[1741368878248,48.37808219,143.15,143.11,0.033]
[1741368878436,48.37808219,143.14,143.11,0.033]
[1741368878650,48.37808219,143.13,143.11,0.033]
[1741368879159,6.9871,143.12,143.11,0.033]
[1741368879329,48.37808219,143.18,143.11,48.41108219]
[1741368879657,48.37808219,143.17,143.1,48.37808219]
[1741368879856,48.37808219,143.16,143.01,57.33808219]
[1741368880146,48.37808219,143.16,143.09,48.37808219]
[1741368880326,5.57375918,143.22,143.15,48.37808219]
[1741368880526,0.03,143.26,143.21,48.37808219]
[1741368880723,0.03,143.26,143.25,48.37808219]
[1741368881326,0.03,143.26,143.22,9.2]
[1741368881527,0.03,143.26,143.25,48.37808219]
[1741368882140,0.03,143.26,143.23,48.37808219]
[1741368882551,0.03,143.26,143.24,48.37808219]
[1741368883049,0.03,143.26,143.25,48.37808219]
[1741368886444,0.03,143.26,143.19,1.04695609]
[1741368886639,0.03,143.26,143.21,48.37808219]
[1741368886838,0.03,143.26,143.15,48.37808219]
[1741368886839,0.03,143.26,143.19,48.37808219]
[1741368887049,48.40808219,143.26,143.19,48.37808219]
[1741368887233,7.0107,143.26,143.2,48.37808219]
[1741368887860,7.0104,143.26,143.2,48.37808219]
[1741368888160,7.0104,143.26,143.19,48.37808219]
[1741368888458,55.38848219,143.26,143.19,48.37808219]
[1741368888955,0.03,143.26,143.22,48.37808219]
[1741368889151,0.03,143.26,143.23,48.37808219]
[1741368889349,0.03,143.26,143.21,48.37808219]
[1741368889546,0.03,143.26,143.15,6.9855]
[1741368889744,0.03,143.26,143.2,48.37808219]
[1741368889951,48.37808219,143.25,143.18,48.37808219]
[1741368890347,48.37808219,143.24,143.17,48.37808219]
[1741368890642,48.37808219,143.24,143.11,6.3562]
[1741368890643,48.37808219,143.21,143.11,0.033]
[1741368890847,48.37808219,143.19,143.12,48.37808219]
[1741368891164,9.21,143.26,143.17,48.37808219]
[1741368891339,48.37808219,143.24,143.17,48.37808219]
[1741368891540,48.37808219,143.23,143.15,48.37808219]
[1741368891749,24.4328,143.25,143.16,48.37808219]
[1741368891941,48.37808219,143.21,143.14,48.37808219]
[1741368892263,48.37808219,143.2,143.13,48.37808219]
[1741368892435,48.37808219,143.21,143.14,48.37808219]
[1741368892640,24.4328,143.25,143.16,48.37808219]
[1741368892849,48.37808219,143.23,143.16,48.37808219]
[1741368893438,6.9822,143.22,143.15,48.37808219]
[1741368893662,72.81588219,143.22,143.11,0.033]
[1741368893844,48.37808219,143.21,143.13,48.37808219]
[1741368894045,48.37808219,143.19,143.11,48.41108219]
[1741368894235,48.37808219,143.18,143.11,48.41108219]
[1741368894439,48.37808219,143.18,143.11,0.033]
[1741368894650,48.37808219,143.18,143.11,48.41108219]
[1741368894939,48.37808219,143.16,143.11,0.033]
[1741368895156,48.37808219,143.15,143.12,5.1446278]
[1741368895458,6.9856,143.15,143.12,5.1446278]
[1741368895840,48.37808219,143.14,143.12,5.1446278]
[1741368896042,48.37808219,143.13,143.12,5.1446278]
[1741368896243,48.37808219,143.13,143.11,0.033]
[1741368896445,48.37808219,143.13,143.02,48.37808219]
[1741368896446,48.37808219,143.12,143.02,48.37808219]
[1741368896660,9.1,143.13,143.02,48.37808219]
[1741368896838,9.1,143.13,142.97,6.9944]
[1741368896839,24.4497,143.15,142.98,1.04858165]
[1741368897044,24.4497,143.15,143.02,312.0]
[1741368897251,48.37808219,143.14,143.06,48.37808219]
[1741368897645,6.9866,143.13,143.06,48.37808219]
[1741368897853,6.9866,143.13,143.04,6.9909]
[1741368898041,6.9866,143.13,143.07,48.37808219]
[1741368898247,72.83128219,143.13,143.05,48.37808219]
[1741368898563,48.37808219,143.09,143.01,48.37808219]
[1741368899354,48.37808219,143.09,143.02,48.37808219]
[1741368899567,6.989,143.08,143.02,48.37808219]
[1741368899756,46.55323248,143.18,143.06,48.37808219]
[1741368899942,48.37808219,143.15,143.08,48.37808219]
[1741368900142,48.37808219,143.15,143.02,24.4717]
[1741368900143,48.37808219,143.16,143.02,8.03996765]
[1741368900353,48.37808219,143.14,143.07,48.37808219]
[1741368900542,68.4704,143.17,143.01,57.47808219]
[1741368900747,68.4704,143.17,143.01,16.0923]
[1741368900960,21.15,143.16,143.01,16.0923]
[1741368901153,21.15,143.16,143.01,6.9923]
[1741368901353,21.15,143.16,143.01,318.9923]
[1741368901553,21.15,143.14,142.99,16.0933]
[1741368901756,48.37808219,143.09,142.99,9.1]
[1741368902063,9.08,143.1,142.96,9.113]
[1741368902269,9.08,143.1,143.02,48.37808219]
[1741368902270,48.37808219,143.09,143.02,48.37808219]
[1741368902471,9.08,143.1,143.02,0.033]
[1741368902655,94.3063,143.15,143.02,0.033]
[1741368902967,48.37808219,143.11,143.02,0.033]
[1741368903471,59.378,143.15,143.02,0.033]
[1741368903653,21.15,143.14,143.02,0.033]
[1741368903860,21.15,143.12,143.02,0.033]
[1741368904447,48.37808219,143.03,142.96,0.033]
[1741368904656,48.37808219,142.99,142.96,0.033]
[1741368904869,48.37808219,142.97,142.96,0.033]
[1741368905260,48.37808219,142.99,142.96,0.033]
[1741368905452,48.37808219,142.97,142.96,0.033]
[1741368905648,55.37248219,142.97,142.96,0.0001]
[1741368905865,48.37808219,142.97,142.96,0.0001]
[1741368906663,15.1202,142.99,142.96,0.0001]
[1741368906865,48.37808219,142.97,142.96,0.0001]
[1741368907262,48.37808219,142.97,142.87,0.033]
[1741368907568,15.1202,142.99,142.87,0.033]
[1741368907569,48.37808219,142.88,142.87,0.033]
[1741368907774,55.37688219,142.88,142.87,0.033]
[1741368908156,2.8836,143.03,142.78,9.14]
[1741368908357,6.9939,142.98,142.78,9.14]
[1741368908548,48.37808219,143.01,142.78,9.14]
[1741368908549,6.9926,143.01,142.87,48.37808219]
[1741368908748,2.8836,143.03,142.88,9.2]
[1741368908970,6.5275,143.05,142.88,9.2]
[1741368908971,12.13320567,143.05,142.88,9.2]
[1741368909164,48.37808219,143.03,142.88,9.2]
[1741368909367,6.5275,143.05,142.94,48.37808219]
[1741368909549,6.5275,143.05,142.94,9.2]
[1741368909753,54.90558219,143.05,142.95,6.9954]
[1741368909952,6.5275,143.05,142.97,48.37808219]
[1741368910167,48.37808219,143.03,142.89,1.04924845]
[1741368910347,48.37808219,142.98,142.89,1.04924845]
[1741368910552,9.24,143.0,142.84,7.0008]
[1741368910752,48.37808219,142.94,142.86,48.37808219]
[1741368910971,9.24,143.0,142.79,2.8625]
[1741368910972,48.37808219,142.92,142.79,2.8625]
[1741368911176,9.24,143.0,142.79,2.8625]
[1741368911362,48.37808219,142.89,142.79,2.8625]
[1741368911568,48.37808219,142.87,142.8,48.37808219]
[1741368911756,9.28,142.86,142.69,151.44]
[1741368911956,9.28,142.85,142.69,158.4481]
[1741368912463,9.28,142.85,142.69,151.44]
[1741368912851,48.37808219,142.82,142.75,48.37808219]
[1741368913055,48.37808219,142.82,142.68,7.3218022]
[1741368913056,48.37808219,142.81,142.74,48.37808219]
[1741368913353,24.4909,142.91,142.73,48.37808219]
[1741368913549,48.37808219,142.9,142.83,48.37808219]
[1741368913759,9.24,142.92,142.75,7.0052]
[1741368913963,6.2689,142.93,142.87,48.37808219]
[1741368914173,48.37808219,142.88,142.8,9.24]
[1741368914475,48.37808219,142.88,142.75,9.24]
[1741368914676,48.37808219,142.83,142.73,48.37808219]
[1741368914863,160.72,142.9,142.71,9.273]
[1741368915063,160.72,142.9,142.75,48.37808219]
[1741368915265,48.37808219,142.77,142.71,48.41108219]
[1741368915457,48.37808219,142.76,142.71,0.033]
[1741368915657,48.37808219,142.77,142.71,0.033]
[1741368916266,15.6026,142.81,142.71,48.41108219]
[1741368916466,6.3426,142.81,142.75,48.37808219]
[1741368916663,48.37808219,142.79,142.73,48.37808219]
[1741368916877,48.37808219,142.8,142.73,48.37808219]
[1741368917379,48.37808219,142.8,142.74,48.37808219]
[1741368917678,48.37808219,142.8,142.71,0.033]
[1741368917877,48.37808219,142.75,142.71,0.033]
[1741368918179,7.0018,142.82,142.73,48.37808219]
[1741368918555,24.5063,142.82,142.71,0.033]
[1741368919076,7.0018,142.82,142.71,0.033]
[1741368919662,48.37808219,142.78,142.71,48.41108219]
[1741368919876,48.37808219,142.75,142.71,0.033]
[1741368920275,48.37808219,142.77,142.71,48.41108219]
[1741368920482,7.0018,142.82,142.72,48.37808219]
[1741368920774,48.37808219,142.73,142.71,0.033]
[1741368920971,48.37808219,142.75,142.71,0.033]
[1741368921171,48.37808219,142.74,142.71,0.033]
[1741368921360,48.37808219,142.73,142.71,0.033]
[1741368921560,48.37808219,142.74,142.71,0.033]
[1741368921883,48.37808219,142.75,142.71,0.033]
[1741368922062,15.651,142.77,142.71,48.41108219]
[1741368922263,48.37808219,142.73,142.71,0.033]
[1741368922581,48.37808219,142.72,142.71,0.033]
[1741368922767,48.37808219,142.72,142.68,0.8874022]
[1741368922965,48.37808219,142.69,142.68,0.8874022]
[1741368923366,48.37808219,142.69,142.68,2.2e-06]
[1741368923566,9.1,142.71,142.55,160.64]
[1741368923567,9.1,142.71,142.57,48.37808219]
[1741368923884,55.38978219,142.62,142.55,57.47808219]
[1741368924055,48.37808219,142.62,142.55,57.47808219]
[1741368924262,48.37808219,142.64,142.58,48.37808219]
[1741368924661,48.37808219,142.63,142.56,48.37808219]
[1741368924871,48.37808219,142.62,142.56,48.37808219]
[1741368925072,24.532,142.67,142.57,48.37808219]
[1741368925257,48.37808219,142.64,142.58,48.37808219]
[1741368925669,48.37808219,142.64,142.57,48.37808219]
[1741368925871,35.0419,142.69,142.54,48.37808219]
[1741368925872,48.37808219,142.61,142.54,48.37808219]
[1741368926071,48.37808219,142.58,142.51,48.37808219]
[1741368926286,24.5389,142.63,142.51,48.37808219]
[1741368926586,48.37808219,142.59,142.52,48.37808219]
[1741368926768,59.5946,142.63,142.5,0.033]
[1741368926968,48.37808219,142.58,142.55,0.033]
[1741368927693,48.37808219,142.59,142.55,0.033]
[1741368927882,15.5891,142.65,142.55,48.41108219]
[1741368928082,48.37808219,142.64,142.58,48.37808219]
[1741368928286,6.5491,142.65,142.55,48.41108219]
[1741368928287,48.37808219,142.61,142.55,48.41108219]
[1741368928485,48.37808219,142.64,142.58,48.37808219]
[1741368928684,151.66,142.67,142.55,0.033]
[1741368928875,151.66,142.67,142.55,312.033]
[1741368929575,200.03808219,142.67,142.6,48.37808219]
[1741368929781,48.37808219,142.68,142.61,48.37808219]
[1741368929997,15.0697,142.71,142.63,48.37808219]
[1741368930173,3.0327,142.74,142.65,48.37808219]
[1741368930501,6.1307,142.76,142.67,48.37808219]
[1741368930688,48.37808219,142.74,142.67,48.37808219]
[1741368930992,6.1307,142.76,142.7,48.37808219]
[1741368931197,48.37808219,142.77,142.71,48.37808219]
[1741368931382,48.37808219,142.73,142.65,8.98]
[1741368931583,48.37808219,142.7,142.65,8.98]
[1741368931779,48.37808219,142.7,142.61,2.9426]
[1741368931995,8.98,142.76,142.63,48.37808219]
[1741368931996,48.37808219,142.69,142.63,48.37808219]
[1741368932196,48.37808219,142.7,142.63,48.37808219]
[1741368933093,48.37808219,142.67,142.61,48.37808219]
[1741368933300,48.37808219,142.66,142.59,48.37808219]
[1741368933481,48.37808219,142.65,142.59,48.37808219]
[1741368933869,8.96,142.7,142.61,48.37808219]
[1741368934075,8.96,142.7,142.56,8.96]
[1741368934076,151.74,142.79,142.67,48.37808219]
[1741368934284,48.37808219,142.75,142.68,48.37808219]
[1741368934496,48.37808219,142.76,142.69,48.37808219]
[1741368934693,151.74,142.79,142.62,8.96]
[1741368934889,48.37808219,142.72,142.62,8.96]
[1741368935089,48.37808219,142.73,142.67,48.37808219]
[1741368935288,151.74,142.79,142.68,48.37808219]
[1741368935501,48.37808219,142.74,142.62,8.96]
[1741368935693,48.37808219,142.74,142.67,48.37808219]
[1741368935997,151.74,142.79,142.68,48.37808219]
[1741368936382,48.37808219,142.75,142.62,8.96]
[1741368936699,48.37808219,142.69,142.62,48.37808219]
[1741368936872,78.46808219,142.73,142.56,8.94]
[1741368937077,48.37808219,142.63,142.53,6.0774]
[1741368937287,48.37808219,142.63,142.52,48.37808219]
[1741368937288,48.37808219,142.63,142.56,48.37808219]
[1741368937606,48.37808219,142.61,142.55,0.033]
[1741368937980,48.37808219,142.62,142.55,48.41108219]
[1741368938178,48.37808219,142.61,142.55,0.033]
[1741368938375,48.37808219,142.66,142.55,0.033]
[1741368938376,48.37808219,142.6,142.55,0.033]
[1741368938686,69.52808219,142.66,142.55,0.033]
[1741368938687,48.37808219,142.59,142.55,0.033]